[Event "GER-chT Youth Countries 2020"]
[Site "Berlin"]
[Date "2020.09.30"]
[Round "1"]
[White "Bräutigam, Katerina"]
[Black "Brunner, Sophia"]
[Result "0-1"]
[ECO "A48"]
[WhiteElo "1744"]
[BlackElo "1850"]
[Annotator "NA"]
[PlyCount "20"]
[EventDate "2020.09.30"]
[EventType "team-tourn"]
[EventRounds "7"]
[EventCountry "GER"]
[SourceTitle "playchess.com"]
[Source "ChessBase"]
[SourceQuality "1"]
[WhiteTeam "Schleswig-Holstein"]
[BlackTeam "Niedersachsen"]
[TimeControl "30/5400+30:0"]

1. d4 {[%emt 0:00:00]} Nf6 {[%emt 0:00:00]} 2. Nf3 {[%emt 0:00:00]} g6 {[%emt 0:00:00]} 3. e3 {[%emt 0:00:00]} Bg7 {[%emt 0:00:00]} 4. Bd3 {[%emt 0:00:13]} d5 {[%emt 0:00:23]} 5. c3 {[%emt 0:00:40]} O-O {[%emt 0:00:10]} 6. Nbd2 {[%emt 0:00:27]} c5 {[%emt 0:02:48]} 7. Ne5 {[%emt 0:03:46]} Qc7 {[%emt 0:01:44]} 8. O-O {[%emt 0:03:03]} b6 {[%emt 0:03:52]} 9. Qe2 {[%emt 0:07:00]} Bb7 {[%emt 0:00:43]} 10. f4 {[%emt 0:02:35]} e6 {[%emt 0:02:23]} 0-1

[Event "GER-chT Youth Countries 2020"]
[Site "Berlin"]
[Date "2020.09.30"]
[Round "1"]
[White "Schreidl, Michael"]
[Black "Besou, Hussain"]
[Result "0-1"]
[ECO "B32"]
[WhiteElo "1640"]
[BlackElo "1825"]
[Annotator "NA"]
[PlyCount "28"]
[EventDate "2020.09.30"]
[EventType "team-tourn"]
[EventRounds "7"]
[EventCountry "GER"]
[SourceTitle "playchess.com"]
[Source "ChessBase"]
[SourceQuality "1"]
[WhiteTeam "Rheinland-Pfalz"]
[BlackTeam "Nordrhein-Westfalen"]
[TimeControl "30/5400+30:0"]

1. e4 {[%emt 0:00:00]} c5 {[%emt 0:00:00]} 2. Nf3 {[%emt 0:00:00]} Nc6 {[%emt 0:00:00]} 3. d4 {[%emt 0:00:00]} cxd4 {[%emt 0:00:00]} 4. Nxd4 {[%emt 0:00:00]} e5 {[%emt 0:00:05]} 5. Nb5 {[%emt 0:01:08]} Nf6 {[%emt 0:00:28]} 6. N1c3 {[%emt 0:00:37]} d6 {[%emt 0:00:08]} 7. Bg5 {[%emt 0:01:05]} a6 {[%emt 0:00:07]} 8. Na3 {[%emt 0:00:23]} h6 {[%emt 0:01:13]} 9. Be3 {[%emt 0:03:40]} Ng4 {[%emt 0:00:55]} 10. Nd5 {[%emt 0:01:19]} Nxe3 {[%emt 0:00:08]} 11. Nxe3 {[%emt 0:00:11]} Be7 {[%emt 0:01:33]} 12. Nd5 {[%emt 0:03:26]} b5 {[%emt 0:00:32]} 13. c3 {[%emt 0:05:53]} O-O {[%emt 0:00:14]} 14. Be2 {[%emt 0:01:37]} f5 {[%emt 0:01:29]} 0-1

[Event "GER-chT Youth Countries 2020"]
[Site "Berlin"]
[Date "2020.09.30"]
[Round "1"]
[White "Wilmink, Anna"]
[Black "Margaryan, Susanna"]
[Result "1-0"]
[ECO "C55"]
[WhiteElo "1608"]
[BlackElo "1450"]
[Annotator "NA"]
[PlyCount "22"]
[EventDate "2020.09.30"]
[EventType "team-tourn"]
[EventRounds "7"]
[EventCountry "GER"]
[SourceTitle "playchess.com"]
[Source "ChessBase"]
[SourceQuality "1"]
[WhiteTeam "Niedersachsen"]
[BlackTeam "Schleswig-Holstein"]
[TimeControl "30/5400+30:0"]

1. e4 {[%emt 0:00:00]} e5 {[%emt 0:00:00]} 2. Nf3 {[%emt 0:00:00]} Nc6 {[%emt 0:00:00]} 3. Bc4 {[%emt 0:00:00]} Nf6 {[%emt 0:00:00]} 4. d3 {[%emt 0:00:54]} Be7 {[%emt 0:00:00]} 5. c3 {[%emt 0:00:56]} O-O {[%emt 0:00:36]} 6. O-O {[%emt 0:01:05]} d6 {[%emt 0:02:06]} 7. Bb3 {[%emt 0:05:12]} Be6 {[%emt 0:00:43]} 8. Bc2 {[%emt 0:01:52]} d5 {[%emt 0:02:06]} 9. Nbd2 {[%emt 0:03:04]} Bc5 {[%emt 0:01:59]} 10. b4 {[%emt 0:05:01]} Bb6 {[%emt 0:00:56]} 11. a4 {[%emt 0:02:22]} a6 {[%emt 0:01:14]} 1-0

[Event "GER-chT Youth Countries 2020"]
[Site "Berlin"]
[Date "2020.09.30"]
[Round "1"]
[White "Trunz, Tamila"]
[Black "Richter, Johanna"]
[Result "1-0"]
[ECO "B23"]
[WhiteElo "1379"]
[BlackElo "1107"]
[Annotator "NA"]
[PlyCount "25"]
[EventDate "2020.09.30"]
[EventType "team-tourn"]
[EventRounds "7"]
[EventCountry "GER"]
[SourceTitle "playchess.com"]
[Source "ChessBase"]
[SourceQuality "1"]
[WhiteTeam "Nordrhein-Westfalen"]
[BlackTeam "Rheinland-Pfalz"]
[TimeControl "30/5400+30:0"]

1. e4 {[%emt 0:00:00]} c5 {[%emt 0:00:00]} 2. Nc3 {[%emt 0:00:00]} Nc6 {[%emt 0:00:00]} 3. f4 {[%emt 0:00:00]} g6 {[%emt 0:00:23]} 4. Nf3 {[%emt 0:00:24]} Bg7 {[%emt 0:00:17]} 5. Bb5 {[%emt 0:00:36]} Nd4 {[%emt 0:00:15]} 6. Nxd4 {[%emt 0:01:08]} cxd4 {[%emt 0:01:22]} 7. Ne2 {[%emt 0:01:27]} e6 {[%emt 0:00:45]} 8. O-O {[%emt 0:00:43]} Ne7 {[%emt 0:00:18]} 9. d3 {[%emt 0:04:49]} O-O {[%emt 0:00:28]} 10. Ng3 {[%emt 0:00:40]} d5 {[%emt 0:01:12]} 11. Qf3 {[%emt 0:02:03]} dxe4 {[%emt 0:02:29]} 12. Nxe4 {[%emt 0:02:57]} f5 {[%emt 0:01:38]} 13. Ng5 {[%emt 0:04:12]} 1-0

[Event "GER-chT Youth Countries 2020"]
[Site "Berlin"]
[Date "2020.09.30"]
[Round "2"]
[White "Krastev, Alexander"]
[Black "Matthes, Aaron"]
[Result "1-0"]
[ECO "C24"]
[WhiteElo "2340"]
[BlackElo "2198"]
[Annotator "ChessBase"]
[PlyCount "123"]
[EventDate "2020.09.30"]
[EventType "team-tourn"]
[EventRounds "7"]
[EventCountry "GER"]
[SourceTitle "playchess.com"]
[Source "ChessBase"]
[SourceQuality "1"]
[WhiteTeam "Nordrhein-Westfalen"]
[BlackTeam "Brandenburg"]
[WhiteTeamCountry "GER"]
[BlackTeamCountry "GER"]
[TimeControl "30/5400+30:0"]

1. e4 {[%emt 0:00:00]} e5 {[%emt 0:00:00]} 2. Bc4 {[%emt 0:00:00]} Nf6 {[%emt 0:00:00]} 3. d3 {[%emt 0:00:00]} Bc5 {[%emt 0:00:48]} 4. Nc3 {[%emt 0:00:00]} d6 {[%emt 0:00:55]} 5. f4 {[%emt 0:00:05]} Bg4 {[%emt 0:02:09]} 6. Nf3 {[%emt 0:01:37]} exf4 {[%emt 0:03:14]} 7. Bxf4 {[%emt 0:00:18]} Nc6 {[%emt 0:00:14]} 8. Qd2 {[%emt 0:03:59]} Qd7 {[%emt 0:07:59]} 9. O-O-O {[%emt 0:04:53]} O-O-O {[%emt 0:01:18]} 10. Bb5 {[%emt 0:02:03]} Bb4 {[%emt 0:04:16]} 11. a3 {[%emt 0:04:00]} Ba5 {[%emt 0:21:56]} 12. b4 {[%emt 0:10:14]} Bb6 {[%emt 0:00:08]} 13. Nd5 {[%emt 0:00:08]} Bxf3 {[%emt 0:01:26]} 14. gxf3 {[%emt 0:00:19]} Qh3 {[%emt 0:00:21]} 15. Bxc6 {[%emt 0:03:57]} bxc6 {[%emt 0:00:12]} 16. Nxf6 {[%emt 0:00:04]} gxf6 {[%emt 0:00:04]} 17. Qc3 {[%emt 0:01:41]} Qh4 {[%emt 0:01:39]} 18. Bg3 {[%emt 0:00:57]} Qh6+ {[%emt 0:00:06]} 19. Kb1 {[%emt 0:00:17]} Kb7 {[%emt 0:00:31]} 20. d4 {[%emt 0:06:50]} f5 {[%emt 0:05:10]} 21. Qd2 {[%emt 0:11:04]} Qxd2 {[%emt 0:09:14]} 22. Rxd2 {[%emt 0:00:05]} fxe4 {[%emt 0:00:09]} 23. fxe4 {[%emt 0:00:05]} Rhe8 {[%emt 0:00:03]} 24. Re1 {[%emt 0:01:03]} f5 {[%emt 0:07:41]} 25. e5 {[%emt 0:02:14]} dxe5 {[%emt 0:01:38]} 26. Rxe5 {[%emt 0:00:31]} Rxe5 {[%emt 0:00:40]} 27. Bxe5 {[%emt 0:00:06]} c5 {[%emt 0:00:30]} 28. bxc5 {[%emt 0:06:04]} Bxc5 {[%emt 0:00:10]} 29. Rf2 {[%emt 0:00:16]} Bxd4 {[%emt 0:03:49]} 30. Rd2 {[%emt 0:00:57]} Bxe5 {[%emt 0:00:05]} 31. Rxd8 {[%emt 1:30:06]} Bxh2 {[%emt 1:30:03]} 32. Rh8 {[%emt 0:00:22]} f4 {[%emt 0:00:23]} 33. Rxh7 {[%emt 0:00:06]} Bg1 {[%emt 0:00:04]} 34. Rf7 {[%emt 0:00:19]} Be3 {[%emt 0:00:04]} 35. Kb2 {[%emt 0:01:58]} Kb6 {[%emt 0:00:07]} 36. Kb3 {[%emt 0:01:40]} Kc6 {[%emt 0:00:45]} 37. Kc4 {[%emt 0:00:07]} Kd6 {[%emt 0:02:30]} 38. Kd3 {[%emt 0:06:52]} Kc6 {[%emt 0:03:35]} 39. Kc4 {[%emt 0:01:14]} Kd6 {[%emt 0:00:09]} 40. a4 {[%emt 0:00:34]} Kc6 {[%emt 0:01:32]} 41. Rf6+ {[%emt 0:00:06]} Kb7 {[%emt 0:00:05]} 42. Kb5 {[%emt 0:01:59]} a6+ {[%emt 0:00:21]} 43. Kc4 {[%emt 0:00:04]} Bd2 {[%emt 0:05:15]} 44. Kd5 {[%emt 0:00:26]} Be3 {[%emt 0:04:00]} 45. Ke6 {[%emt 0:06:19]} Kb6 {[%emt 0:04:10]} 46. Kd5+ {[%emt 0:01:17]} Ka5 47. Kc4 {[%emt 0:00:13]} Bd2 {[%emt 0:04:02]} 48. Kb3 {[%emt 0:07:46]} Be3 {[%emt 0:00:23]} 49. c3 {[%emt 0:00:14]} Bd2 {[%emt 0:01:26]} 50. Rc6 {[%emt 0:00:28]} Be3 {[%emt 0:00:47]} 51. Rxc7 {[%emt 0:00:14]} f3 {[%emt 0:00:13]} 52. Rf7 {[%emt 0:00:06]} f2 {[%emt 0:00:03]} 53. Rf5+ {[%emt 0:00:10]} Kb6 {[%emt 0:00:06]} 54. Kc4 {[%emt 0:00:39]} Kc6 {[%emt 0:02:05]} 55. Rf6+ {[%emt 0:00:19]} Kc7 {[%emt 0:00:20]} 56. Kd5 {[%emt 0:00:12]} Kd7 {[%emt 0:01:38]} 57. Rf7+ {[%emt 0:01:35]} Ke8 {[%emt 0:00:37]} 58. Ke6 {[%emt 0:00:09]} Bc5 {[%emt 0:00:40]} 59. c4 {[%emt 0:00:05]} Be3 {[%emt 0:00:33]} 60. Rf5 {[%emt 0:00:09]} Kd8 {[%emt 0:00:15]} 61. Kd6 {[%emt 1:30:24]} Kc8 {[%emt 1:30:49]} 62. c5 {[%emt 0:00:13]} 1-0

[Event "GER-chT Youth Countries 2020"]
[Site "Berlin"]
[Date "2020.09.30"]
[Round "2"]
[White "Faerber, David"]
[Black "Roseneck, Jonas"]
[Result "0-1"]
[ECO "B51"]
[WhiteElo "2321"]
[BlackElo "2417"]
[Annotator "ChessBase"]
[PlyCount "52"]
[EventDate "2020.09.30"]
[EventType "team-tourn"]
[EventRounds "7"]
[EventCountry "GER"]
[SourceTitle "playchess.com"]
[Source "ChessBase"]
[SourceQuality "1"]
[WhiteTeam "Baden"]
[BlackTeam "Sachsen-Anhalt"]
[BlackTeamCountry "GER"]
[TimeControl "30/5400+30:0"]

1. e4 c5 {[%emt 0:00:00]} 2. Nf3 {[%emt 0:00:00]} d6 3. Bb5+ {[%emt 0:00:04]} Nd7 {[%emt 0:00:00]} 4. d4 {[%emt 0:00:00]} cxd4 {[%emt 0:01:04]} 5. Qxd4 a6 {[%emt 0:00:12]} 6. Bxd7+ {[%emt 0:00:37]} Bxd7 {[%emt 0:11:21]} 7. Nc3 e5 {[%emt 0:00:30]} 8. Qd3 {[%emt 0:00:22]} h6 {[%emt 0:00:00]} 9. O-O {[%emt 0:01:21]} Nf6 {[%emt 0:08:13]} 10. Nd2 {[%emt 0:08:32]} b5 {[%emt 0:02:00]} 11. a4 {[%emt 0:01:49]} b4 {[%emt 0:02:17]} 12. Nd5 {[%emt 0:03:20]} Nxd5 {[%emt 0:07:19]} 13. exd5 {[%emt 0:03:50]} Be7 {[%emt 0:01:37]} 14. Nc4 {[%emt 0:16:31]} O-O 15. f4 Bf6 {[%emt 0:16:04]} 16. Be3 {[%emt 0:03:42]} Qc7 {[%emt 0:09:46]} 17. fxe5 {[%emt 0:18:47]} Bxe5 {[%emt 0:02:48]} 18. Bd4 {[%emt 0:03:33]} Rac8 {[%emt 0:05:46]} 19. b3 {[%emt 0:02:24]} Rfe8 {[%emt 0:01:10]} 20. Rfe1 {[%emt 0:07:58]} Bf5 {[%emt 0:02:18]} 21. Qd2 {[%emt 0:01:23]} Bxd4+ {[%emt 0:00:31]} 22. Qxd4 {[%emt 0:00:05]} Bxc2 {[%emt 0:00:29]} 23. Qf4 {[%emt 0:01:06]} Rxe1+ {[%emt 0:05:32]} 24. Rxe1 {[%emt 0:00:04]} Bxb3 {[%emt 0:00:10]} 25. Nxd6 {[%emt 0:00:24]} Rd8 {[%emt 0:01:00]} 26. Qxb4 {[%emt 0:00:36]} Rb8 {[%emt 0:06:30]} 0-1

[Event "GER-chT Youth Countries 2020"]
[Site "Berlin"]
[Date "2020.09.30"]
[Round "2"]
[White "Pallas, Sebastian"]
[Black "Schmider, Niklas"]
[Result "0-1"]
[ECO "B94"]
[WhiteElo "2315"]
[BlackElo "2291"]
[Annotator "ChessBase"]
[PlyCount "27"]
[EventDate "2020.09.30"]
[EventType "team-tourn"]
[EventRounds "7"]
[EventCountry "GER"]
[SourceTitle "playchess.com"]
[Source "ChessBase"]
[SourceQuality "1"]
[WhiteTeam "Sachsen-Anhalt"]
[BlackTeam "Baden"]
[WhiteTeamCountry "GER"]
[BlackTeamCountry "GER"]
[TimeControl "30/5400+30:0"]

1. e4 c5 2. Nf3 d6 3. d4 cxd4 4. Nxd4 Nf6 5. Nc3 a6 6. Bg5 Nbd7 7. Qe2 h6 8. Bh4 g6 9. f4 e5 10. fxe5 dxe5 11. Nb3 b5 12. Nd5 Nxd5 13. exd5 Bd6 14. Qd2 0-1

[Event "GER-chT Youth Countries 2020"]
[Site "Berlin"]
[Date "2020.09.30"]
[Round "2"]
[White "Richter, Nils"]
[Black "Goldbeck, Lars"]
[Result "1-0"]
[ECO "A16"]
[WhiteElo "2307"]
[BlackElo "2273"]
[Annotator "ChessBase"]
[PlyCount "36"]
[EventDate "2020.09.30"]
[EventType "team-tourn"]
[EventRounds "7"]
[EventCountry "GER"]
[SourceTitle "playchess.com"]
[Source "ChessBase"]
[SourceQuality "1"]
[WhiteTeam "Württemberg"]
[BlackTeam "Bayern"]
[WhiteTeamCountry "GER"]
[BlackTeamCountry "GER"]
[TimeControl "30/5400+30:0"]

1. c4 {[%emt 0:00:00]} Nf6 {[%emt 0:00:00]} 2. Nc3 {[%emt 0:00:00]} g6 {[%emt 0:00:00]} 3. Nf3 {[%emt 0:00:02]} Bg7 {[%emt 0:00:00]} 4. g3 {[%emt 0:00:19]} O-O {[%emt 0:00:00]} 5. d4 {[%emt 0:00:08]} c5 {[%emt 0:08:39]} 6. Bg2 {[%emt 0:01:53]} cxd4 {[%emt 0:01:00]} 7. Nxd4 {[%emt 0:00:09]} Qc7 {[%emt 0:06:46]} 8. Nd5 {[%emt 0:10:21]} Nxd5 {[%emt 0:00:06]} 9. cxd5 {[%emt 0:00:06]} Qa5+ {[%emt 0:01:34]} 10. Bd2 {[%emt 0:02:19]} Qb6 {[%emt 0:00:02]} 11. Bc3 {[%emt 0:01:33]} e5 {[%emt 0:00:25]} 12. Nb3 {[%emt 0:07:13]} d6 {[%emt 0:00:05]} 13. O-O {[%emt 0:00:10]} Bd7 {[%emt 0:03:51]} 14. Nd2 {[%emt 0:03:39]} Rc8 {[%emt 0:02:00]} 15. Qb3 {[%emt 0:04:48]} Bb5 {[%emt 0:07:03]} 16. Rfe1 {[%emt 0:03:42]} Nd7 {[%emt 0:06:56]} 17. Ne4 {[%emt 0:14:32]} Bf8 {[%emt 0:14:12]} 18. Qa3 {[%emt 0:10:16]} a5 {[%emt 0:07:54]} 1-0

[Event "GER-chT Youth Countries 2020"]
[Site "Berlin"]
[Date "2020.09.30"]
[Round "2"]
[White "Stelmaszyk, Nico"]
[Black "Haack, Kevin"]
[Result "1-0"]
[ECO "B22"]
[WhiteElo "2301"]
[BlackElo "2209"]
[Annotator "ChessBase"]
[PlyCount "49"]
[EventDate "2020.09.30"]
[EventType "team-tourn"]
[EventRounds "7"]
[EventCountry "GER"]
[SourceTitle "playchess.com"]
[Source "ChessBase"]
[SourceQuality "1"]
[WhiteTeam "Niedersachsen"]
[BlackTeam "Hessen"]
[WhiteTeamCountry "GER"]
[BlackTeamCountry "GER"]
[TimeControl "30/5400+30:0"]

1. e4 {[%emt 0:00:00]} c5 2. c3 Nf6 {[%emt 0:00:00]} 3. e5 {[%emt 0:00:00]} Nd5 {[%emt 0:00:00]} 4. d4 {[%emt 0:00:00]} cxd4 {[%emt 0:00:00]} 5. Nf3 {[%emt 0:00:00]} e6 {[%emt 0:01:00]} 6. cxd4 {[%emt 0:00:00]} d6 {[%emt 0:00:07]} 7. Bc4 {[%emt 0:00:00]} Nc6 {[%emt 0:00:49]} 8. O-O {[%emt 0:00:00]} Be7 {[%emt 0:00:45]} 9. Qe2 {[%emt 0:00:00]} O-O {[%emt 0:16:34]} 10. Qe4 {[%emt 0:08:32]} Ndb4 {[%emt 0:04:48]} 11. exd6 {[%emt 0:01:40]} Qxd6 {[%emt 0:02:57]} 12. Bf4 {[%emt 0:00:44]} Qd7 {[%emt 0:03:40]} 13. Nc3 {[%emt 0:02:07]} Rd8 {[%emt 0:02:34]} 14. Rfd1 {[%emt 0:05:35]} Nd5 {[%emt 0:02:44]} 15. Ne5 {[%emt 0:01:46]} Nxe5 {[%emt 0:12:34]} 16. Bxe5 {[%emt 0:09:01]} b6 17. Bb5 Qb7 {[%emt 0:12:15]} 18. Nxd5 {[%emt 0:03:12]} Rxd5 {[%emt 0:04:49]} 19. Bd3 {[%emt 0:03:25]} f5 {[%emt 0:03:02]} 20. Qe3 {[%emt 0:04:07]} Rd8 {[%emt 0:03:11]} 21. Qg3 {[%emt 0:07:23]} Bf8 {[%emt 0:03:52]} 22. Rac1 {[%emt 0:00:49]} Qe7 {[%emt 0:02:57]} 23. Be2 {[%emt 0:02:48]} Bb7 {[%emt 0:02:22]} 24. Rc7 {[%emt 0:01:41]} Rd7 {[%emt 0:00:10]} 25. Rdc1 {[%emt 0:00:39]} 1-0

[Event "GER-chT Youth Countries 2020"]
[Site "Berlin"]
[Date "2020.09.30"]
[Round "2"]
[White "Pubantz, Jan"]
[Black "Nothnagel, Marian Can"]
[Result "1/2-1/2"]
[ECO "E92"]
[WhiteElo "2295"]
[BlackElo "2355"]
[Annotator "ChessBase"]
[PlyCount "98"]
[EventDate "2020.09.30"]
[EventType "team-tourn"]
[EventRounds "7"]
[EventCountry "GER"]
[SourceTitle "playchess.com"]
[Source "ChessBase"]
[SourceQuality "1"]
[WhiteTeam "Niedersachsen"]
[BlackTeam "Hessen"]
[WhiteTeamCountry "GER"]
[BlackTeamCountry "GER"]
[TimeControl "30/5400+30:0"]

1. d4 {[%emt 0:00:00]} Nf6 2. c4 g6 {[%emt 0:00:00]} 3. Nc3 {[%emt 0:00:00]} Bg7 {[%emt 0:00:00]} 4. e4 {[%emt 0:00:00]} d6 {[%emt 0:00:00]} 5. Nf3 {[%emt 0:00:00]} O-O {[%emt 0:00:00]} 6. Be2 {[%emt 0:00:00]} e5 {[%emt 0:00:00]} 7. Be3 {[%emt 0:02:36]} Nbd7 8. d5 Nc5 {[%emt 0:10:28]} 9. Nd2 {[%emt 0:01:52]} a5 {[%emt 0:12:13]} 10. a3 {[%emt 0:18:38]} h5 {[%emt 0:00:57]} 11. f3 a4 {[%emt 0:00:05]} 12. Bxc5 {[%emt 0:07:47]} dxc5 {[%emt 0:03:57]} 13. Nxa4 {[%emt 0:04:03]} b6 {[%emt 0:04:35]} 14. Qc2 {[%emt 0:05:51]} h4 {[%emt 0:02:38]} 15. O-O-O Nh5 16. Nc3 {[%emt 0:07:43]} Bd7 {[%emt 0:08:38]} 17. Kb1 {[%emt 0:07:49]} Bh6 {[%emt 0:13:44]} 18. g3 {[%emt 0:03:09]} Qg5 {[%emt 0:00:38]} 19. Rhg1 {[%emt 0:18:51]} Qe3 {[%emt 0:13:02]} 20. f4 {[%emt 0:07:54]} hxg3 {[%emt 0:04:39]} 21. Bxh5 {[%emt 0:01:00]} gxh2 {[%emt 0:00:04]} 22. Rge1 {[%emt 0:04:05]} Qh3 {[%emt 0:00:50]} 23. Be2 {[%emt 0:02:14]} Bxf4 {[%emt 0:00:22]} 24. Qd3 {[%emt 0:02:04]} Qh6 {[%emt 0:09:04]} 25. Bf3 {[%emt 0:00:52]} Kg7 {[%emt 0:00:58]} 26. Ne2 {[%emt 0:01:22]} Bg5 {[%emt 0:03:34]} 27. Rh1 {[%emt 0:01:00]} Ba4 {[%emt 0:00:06]} 28. b3 {[%emt 0:01:47]} Bxd2 {[%emt 0:00:16]} 29. Qxd2 {[%emt 0:00:07]} Qxd2 {[%emt 0:00:05]} 30. Rxd2 {[%emt 0:00:04]} Bxb3 {[%emt 0:00:04]} 31. Kb2 {[%emt 1:31:11]} Bxc4 {[%emt 1:30:32]} 32. Rxh2 {[%emt 0:00:11]} b5 {[%emt 0:02:29]} 33. Rc2 {[%emt 0:00:26]} Ra6 {[%emt 0:03:01]} 34. Nc1 {[%emt 0:00:48]} Rfa8 {[%emt 0:03:44]} 35. Be2 {[%emt 0:01:16]} Bxe2 {[%emt 0:00:46]} 36. Rhxe2 {[%emt 0:00:31]} c4 {[%emt 0:00:51]} 37. Rc3 {[%emt 0:00:52]} Rf6 {[%emt 0:03:35]} 38. Na2 {[%emt 0:00:55]} c5 {[%emt 0:02:04]} 39. dxc6 {[%emt 0:00:37]} Rxc6 {[%emt 0:00:04]} 40. Rd2 {[%emt 0:01:10]} Rf6 {[%emt 0:00:25]} 41. Nb4 {[%emt 0:00:00]} Rf4 {[%emt 0:00:00]} 42. Re3 {[%emt 0:00:00]} c3+ {[%emt 0:00:00]} 43. Rxc3 {[%emt 0:00:00]} Rxe4 {[%emt 0:00:00]} 44. Rd5 {[%emt 0:00:00]} g5 {[%emt 0:00:00]} 45. Rxb5 {[%emt 0:00:00]} g4 {[%emt 0:00:00]} 46. Kb3 {[%emt 0:00:00]} Kg6 {[%emt 0:00:00]} 47. a4 {[%emt 0:00:00]} f5 {[%emt 0:00:00]} 48. Nd3 {[%emt 0:03:45]} Rexa4 {[%emt 0:00:00]} 49. Nxe5+ {[%emt 0:00:22]} Kg5 {[%emt 0:00:00]} 1/2-1/2

[Event "GER-chT Youth Countries 2020"]
[Site "Berlin"]
[Date "2020.09.30"]
[Round "2"]
[White "Schneider, Jana"]
[Black "Koelle, Tobias"]
[Result "0-1"]
[ECO "B90"]
[WhiteElo "2270"]
[BlackElo "2275"]
[Annotator "ChessBase"]
[PlyCount "140"]
[EventDate "2020.09.30"]
[EventType "team-tourn"]
[EventRounds "7"]
[EventCountry "GER"]
[SourceTitle "playchess.com"]
[Source "ChessBase"]
[SourceQuality "1"]
[WhiteTeam "Bayern"]
[BlackTeam "Württemberg"]
[WhiteTeamCountry "GER"]
[BlackTeamCountry "GER"]
[TimeControl "30/5400+30:0"]

1. e4 {[%emt 0:00:00]} c5 {[%emt 0:00:00]} 2. Nf3 {[%emt 0:00:00]} d6 {[%emt 0:00:00]} 3. d4 {[%emt 0:00:00]} cxd4 {[%emt 0:00:00]} 4. Nxd4 {[%emt 0:00:00]} Nf6 {[%emt 0:00:00]} 5. Nc3 {[%emt 0:00:02]} a6 {[%emt 0:00:00]} 6. Be3 {[%emt 0:00:10]} e5 {[%emt 0:00:00]} 7. Nf3 {[%emt 0:00:10]} Be7 {[%emt 0:00:01]} 8. Bc4 {[%emt 0:00:14]} O-O {[%emt 0:00:05]} 9. O-O {[%emt 0:00:13]} Be6 {[%emt 0:00:04]} 10. Bb3 {[%emt 0:00:10]} b5 {[%emt 0:00:07]} 11. Qd3 {[%emt 0:19:25]} Nc6 {[%emt 0:06:42]} 12. Bg5 {[%emt 0:02:27]} Qc7 {[%emt 0:07:50]} 13. Bxf6 {[%emt 0:12:30]} Bxf6 {[%emt 0:00:15]} 14. Nd5 {[%emt 0:06:02]} Bxd5 {[%emt 0:00:10]} 15. Qxd5 {[%emt 0:00:08]} Ne7 {[%emt 0:06:59]} 16. Qd3 {[%emt 0:04:56]} Rfd8 {[%emt 0:04:25]} 17. c3 {[%emt 0:05:18]} Qc5 {[%emt 0:05:11]} 18. Rfd1 {[%emt 0:01:26]} a5 {[%emt 0:01:31]} 19. a3 {[%emt 0:05:53]} Ra7 {[%emt 0:03:28]} 20. Bd5 {[%emt 0:01:48]} Rc7 {[%emt 0:03:01]} 21. Ne1 {[%emt 0:07:16]} Qb6 {[%emt 0:04:28]} 22. Qb1 {[%emt 0:06:08]} g6 {[%emt 0:07:16]} 23. Qa2 {[%emt 0:03:37]} Nxd5 {[%emt 0:00:23]} 24. Rxd5 {[%emt 0:00:09]} Rc4 {[%emt 0:01:45]} 25. Qb1 {[%emt 0:00:31]} Rc5 {[%emt 0:09:14]} 26. Qd3 {[%emt 0:00:36]} Rxd5 {[%emt 0:00:11]} 27. Qxd5 {[%emt 0:00:05]} h5 {[%emt 0:02:06]} 28. Rd1 {[%emt 0:02:29]} Kf8 {[%emt 0:03:43]} 29. Qb3 {[%emt 0:01:52]} Rb8 {[%emt 0:06:41]} 30. Rd5 {[%emt 0:02:19]} Ke7 {[%emt 0:06:42]} 31. h3 {[%emt 1:34:58]} Rb7 {[%emt 1:31:04]} 32. Nc2 {[%emt 0:01:16]} Bg5 {[%emt 0:00:21]} 33. Ne1 {[%emt 0:01:57]} Qc6 {[%emt 0:01:52]} 34. Qc2 {[%emt 0:04:00]} Qc4 {[%emt 0:03:54]} 35. Qd3 {[%emt 0:00:41]} Qxd3 {[%emt 0:00:36]} 36. Nxd3 {[%emt 0:00:21]} a4 {[%emt 0:08:40]} 37. Kf1 {[%emt 0:01:27]} Ke6 {[%emt 0:04:18]} 38. Ke2 {[%emt 0:00:32]} f5 {[%emt 0:01:16]} 39. f3 {[%emt 0:00:31]} Rb8 {[%emt 0:00:39]} 40. Kd1 {[%emt 0:01:24]} Be3 {[%emt 0:00:58]} 41. Kc2 {[%emt 0:03:10]} Rb6 {[%emt 0:03:18]} 42. b3 {[%emt 0:00:00]} Kf6 {[%emt 0:00:00]} 43. bxa4 {[%emt 0:00:00]} bxa4 {[%emt 0:00:00]} 44. Ra5 {[%emt 0:00:00]} Kg5 {[%emt 0:00:00]} 45. Rxa4 {[%emt 0:00:00]} Rb8 {[%emt 0:00:00]} 46. exf5 {[%emt 0:00:00]} gxf5 {[%emt 0:00:00]} 47. Nb4 {[%emt 0:00:00]} Rg8 {[%emt 0:00:00]} 48. Kd3 {[%emt 0:00:00]} Bc5 {[%emt 0:00:00]} 49. Nd5 {[%emt 0:00:00]} Rb8 {[%emt 0:00:00]} 50. h4+ {[%emt 0:02:13]} Kg6 {[%emt 0:00:00]} 51. Ne3 {[%emt 0:00:16]} Rb2 {[%emt 0:00:00]} 52. Ra6 {[%emt 0:00:30]} e4+ {[%emt 0:00:51]} 53. fxe4 {[%emt 0:02:43]} fxe4+ {[%emt 0:00:01]} 54. Kxe4 {[%emt 0:01:51]} Re2 {[%emt 0:00:06]} 55. Kf4 {[%emt 0:00:09]} Rxe3 {[%emt 0:00:50]} 56. Rxd6+ {[%emt 0:00:07]} Bxd6+ {[%emt 0:00:04]} 57. Kxe3 {[%emt 0:00:05]} Kf5 {[%emt 0:01:43]} 58. Kf3 {[%emt 0:03:35]} Bxa3 {[%emt 0:00:20]} 59. c4 {[%emt 0:00:36]} Bc5 {[%emt 0:00:27]} 60. Kg3 {[%emt 0:00:55]} Bd4 {[%emt 0:01:53]} 61. Kf3 {[%emt 1:30:23]} Bg1 {[%emt 1:30:11]} 62. Ke2 {[%emt 0:00:43]} Kg4 {[%emt 0:00:31]} 63. g3 {[%emt 0:00:15]} Kxg3 {[%emt 0:00:10]} 64. Kf1 {[%emt 0:00:09]} Bc5 {[%emt 0:00:24]} 65. Ke2 {[%emt 0:00:07]} Kxh4 {[%emt 0:00:32]} 66. Kf3 {[%emt 0:00:09]} Kh3 {[%emt 0:00:04]} 67. Kf4 {[%emt 0:00:06]} h4 {[%emt 0:00:13]} 68. Kf3 {[%emt 0:00:06]} Kh2 {[%emt 0:00:03]} 69. Kg4 {[%emt 0:00:13]} h3 {[%emt 0:00:06]} 70. Kh4 {[%emt 0:00:12]} Kg2 {[%emt 0:00:04]} 0-1